bitfinex-derivatives/quotes_SOLF0:USTF0_20250228
["timestamp","ask_amount","ask_price","bid_price","bid_amount"]
[1740724665902,14.34,127.16,127.05,0.05883776]
[1740724666109,14.34,127.16,127.02,3.9026]
[1740724666308,14.34,127.16,127.12,7.8749]
[1740724666603,42.76505281,127.23,127.02,18.2426]
[1740724666804,7.8702,127.2,127.02,18.2426]
[1740724666998,0.05641183,127.14,127.11,0.04964321]
[1740724667205,1.44718564,127.21,127.02,18.2426]
[1740724667507,0.05257845,127.14,127.11,0.05061381]
[1740724667710,14.34,127.22,127.02,18.2426]
[1740724667904,10.51881771,127.24,127.03,15.7606]
[1740724668707,7.8719,127.18,127.13,7.8743]
[1740724668902,0.05149995,127.15,127.13,7.8743]
[1740724669101,0.05149995,127.15,127.12,0.05360317]
[1740724670008,0.05149995,127.15,127.12,7.92820317]
[1740724670204,0.05149995,127.15,127.12,0.05360317]
[1740724670409,1.44716802,127.23,127.12,0.05360317]
[1740724670604,10.51881771,127.24,127.09,14.34]
[1740724670907,42.76505281,127.28,127.1,4.0211]
[1740724671107,42.76505281,127.28,127.1,202.9682]
[1740724671504,42.76505281,127.28,127.19,7.8703]
[1740724671806,42.76505281,127.28,127.1,202.9682]
[1740724672004,191.44642587,127.27,127.1,202.9682]
[1740724672208,0.05492944,127.25,127.1,202.9682]
[1740724672410,1.57092587,127.26,127.1,7.9682]
[1740724672710,7.8718,127.18,127.1,7.9682]
[1740724673009,14.34,127.21,127.1,7.9682]
[1740724673406,0.04964441,127.17,127.14,0.0580274]
[1740724673711,0.04964441,127.17,127.14,7.9313274]
[1740724673910,0.04964441,127.17,127.14,0.0580274]
[1740724677111,7.8732,127.15,127.14,0.0580274]
[1740724677609,0.04964441,127.17,127.06,3.7855]
[1740724677808,1.44773517,127.18,127.06,3.7855]
[1740724678218,7.8762,127.11,127.05,7.8792]
[1740724678411,14.34,127.14,127.03,3.8778]
[1740724678809,0.06049422,127.1,127.07,0.05182407]
[1740724679911,190.0,127.17,127.07,0.05182407]
[1740724680111,14.4627,127.19,127.03,18.2178]
[1740724681214,0.05212848,127.12,127.1,0.05148755]
[1740724681514,14.4627,127.19,127.03,18.2178]
[1740724681711,0.05014911,127.12,127.1,0.05131728]
[1740724681908,14.34,127.19,127.03,18.2178]
[1740724682214,81.36582035,127.23,127.03,18.2178]
[1740724682717,7.8717,127.18,127.13,7.8743]
[1740724682904,81.36582035,127.23,127.03,41.7578]
[1740724682905,66.78162035,127.23,127.03,41.7578]
[1740724683110,0.04954676,127.17,127.14,0.0515013]
[1740724683310,7.869,127.22,127.14,0.0515013]
[1740724683612,66.78162035,127.23,127.1,209.34]
[1740724684410,66.78162035,127.23,127.15,0.05258167]
[1740724684605,0.05126774,127.18,127.15,0.05258167]
[1740724684807,0.05126774,127.18,127.04,15.9143073]
[1740724685111,38.0536,127.23,127.1,0.05105776]
[1740724685316,0.05542281,127.12,127.1,0.05105776]
[1740724685617,0.05542281,127.12,127.1,0.05602535]
[1740724685618,0.05271514,127.12,127.1,0.05602535]
[1740724685812,0.1848,127.22,127.1,0.05602535]
[1740724686010,16.08555629,127.23,127.1,0.05602535]
[1740724686211,7.8715,127.18,127.13,7.8744]
[1740724686410,15.91195629,127.23,127.08,14.32]
[1740724686614,1.57195629,127.23,127.08,14.32]
[1740724686810,1.57195629,127.23,127.14,0.05874463]
[1740724686811,0.05617744,127.17,127.14,0.05874463]
[1740724687114,0.2282,127.27,127.08,14.32]
[1740724687115,10.51881771,127.24,127.08,18.26]
[1740724687306,10.51881771,127.24,127.08,14.32]
[1740724687506,10.51881771,127.24,127.08,37.86]
[1740724687711,10.51881771,127.24,127.22,7.8688]
[1740724688110,10.57658953,127.24,127.22,0.05048279]
[1740724688316,10.57658953,127.24,127.22,7.91918279]
[1740724688613,10.57658953,127.24,127.22,0.05048279]
[1740724691217,0.05777182,127.24,127.16,8.0569]
[1740724691418,14.32,127.25,127.16,8.0569]
[1740724691619,14.32,127.25,127.08,15.89381177]
[1740724691818,1.73133778,127.24,127.09,7.9559]
[1740724692019,0.2844,127.24,127.14,7.8737]
[1740724692211,191.44708864,127.23,127.1,4.0193]
[1740724692412,0.05466931,127.2,127.1,11.8954]
[1740724692616,190.0,127.19,127.07,84.19477544]
[1740724692817,15.76708864,127.18,127.07,84.19477544]
[1740724693022,0.2779,127.17,127.07,92.07247544]
[1740724693617,0.05935852,127.13,127.11,0.05276336]
[1740724694119,0.05935852,127.13,127.05,7.9559]
[1740724694317,7.8764,127.1,126.99,84.19477544]
[1740724694521,7.8764,127.1,127.01,7.8818]
[1740724694820,7.8764,127.1,127.0,11.728]
[1740724695024,190.0,127.16,127.0,11.728]
[1740724695218,190.0,127.16,127.04,0.05096027]
[1740724695424,14.5979,127.17,127.08,7.877]
[1740724695619,14.5979,127.17,127.01,14.32]
[1740724696022,214.02,127.21,127.12,7.8748]
[1740724696223,214.02,127.21,127.01,14.32]
[1740724696526,0.06007482,127.18,127.15,0.0513269]
[1740724696726,42.76505281,127.21,127.15,7.8726]
[1740724696931,0.05274649,127.18,127.15,7.93096588]
[1740724697121,0.05274649,127.18,127.15,0.05836588]
[1740724697319,0.05274649,127.18,127.08,7.8773]
[1740724697732,190.1817,127.2,127.08,7.8773]
[1740724697930,190.1817,127.2,127.1,7.8762]
[1740724698126,190.1817,127.2,127.01,1.57467915]
[1740724698326,0.1817,127.2,127.01,1.57467915]
[1740724698630,0.1817,127.2,127.11,7.875]
[1740724698631,7.555e-05,127.12,127.11,7.875]
[1740724698926,22.19,127.21,127.13,7.8741]
[1740724699130,22.19,127.21,127.01,1.57467915]
[1740724699328,14.32,127.21,127.01,1.57467915]
[1740724699530,14.32,127.24,127.01,1.57467915]
[1740724699828,6.749e-05,127.14,127.11,0.05527517]
[1740724700023,14.32,127.24,127.07,14.32]
[1740724700224,1.44711244,127.23,127.08,11.3914]
[1740724700426,14.32,127.24,127.08,11.3914]
[1740724701019,0.05215981,127.17,127.15,0.05371824]
[1740724701233,14.32,127.24,127.08,11.3914]
[1740724701626,22.1881,127.24,127.18,7.8708]
[1740724701932,22.1881,127.24,127.08,11.3914]
[1740724701933,0.1817,127.28,127.08,11.3914]
[1740724702129,238.89881771,127.29,127.08,11.3914]
[1740724702325,238.89881771,127.29,127.17,0.0560836]
[1740724702529,5.31e-05,127.2,127.17,0.0560836]
[1740724702732,7.8657,127.28,127.15,3.9972]
[1740724703031,10.51881771,127.29,127.15,198.9972]
[1740724703227,10.51881771,127.29,127.16,8.1169]
[1740724703626,18.38341771,127.29,127.23,7.8678]
[1740724703830,0.05806939,127.24,127.23,7.8678]
[1740724704029,10.51881771,127.29,127.16,8.1169]
[1740724704233,0.05076903,127.25,127.22,0.05575616]
[1740724704626,0.05076903,127.25,127.16,8.1169]
[1740724704833,0.1773,127.31,127.22,0.05924464]
[1740724705133,0.05310429,127.22,127.16,8.1169]
[1740724705429,0.1773,127.31,127.16,8.1169]
[1740724705430,1.44635906,127.3,127.25,0.05951589]
[1740724705638,1.4464299,127.29,127.16,8.1169]
[1740724705937,1.4464299,127.28,127.18,7.8712]
[1740724706139,1.4464299,127.29,127.16,8.1169]
[1740724706334,190.0,127.3,127.18,7.8712]
[1740724706335,7.8677,127.24,127.18,7.8712]
[1740724706535,14.32,127.26,127.16,8.1169]
[1740724706735,0.0570111,127.22,127.2,0.05423364]
[1740724707436,0.0570111,127.22,127.2,7.92413364]
[1740724707636,0.0570111,127.22,127.2,0.05423364]
[1740724708337,14.32,127.26,127.2,0.05423364]
[1740724708538,7.865,127.29,127.2,0.05423364]
[1740724708834,14.4973,127.31,127.16,8.1169]
[1740724709040,7.8641,127.3,127.26,7.8662]
[1740724709443,0.04971194,127.29,127.27,0.05011204]
[1740724709634,0.04971194,127.29,127.16,203.1169]
[1740724709635,8.0408,127.31,127.26,7.8659]
[1740724709836,0.05883812,127.24,127.21,0.04969464]
[1740724710031,7.8646,127.29,127.24,7.8672]
[1740724710231,14.4875,127.34,127.16,203.1169]
[1740724711235,0.05506716,127.26,127.24,0.05533742]
[1740724711540,1.44603047,127.33,127.16,203.1169]
[1740724711839,0.0517158,127.26,127.24,7.92153326]
[1740724712035,0.0517158,127.26,127.24,7.8672]
[1740724712239,0.0517158,127.26,127.24,7.92437082]
[1740724712240,0.05178159,127.26,127.24,7.92437082]
[1740724712632,0.05178159,127.26,127.24,0.05717082]
[1740724713744,3.97178159,127.26,127.16,8.1169]
[1740724713945,37.86,127.27,127.16,8.1169]
[1740724714245,1.68370787,127.26,127.16,8.1169]
[1740724714440,7.8693,127.22,127.17,7.8718]
[1740724714644,0.237,127.26,127.16,8.1169]
[1740724714843,0.05498519,127.21,127.18,0.05640759]
[1740724715245,0.05498519,127.21,127.18,0.05931706]
[1740724715651,7.92488519,127.21,127.18,0.05931706]
[1740724715845,0.05498519,127.21,127.18,0.05931706]
[1740724716045,14.32,127.2,127.08,12.0778]
[1740724716247,7.872,127.17,127.08,12.0778]
[1740724716549,14.32,127.2,127.08,12.0778]
[1740724716746,0.2347,127.19,127.08,12.0778]
[1740724716941,0.2347,127.19,127.08,8.1434]
[1740724717147,1.44761517,127.18,127.08,8.1434]
[1740724717340,0.05310091,127.15,127.12,7.92523541]
[1740724717846,0.05310091,127.15,127.12,0.05023541]
[1740724718350,3.99310091,127.15,127.01,1.57467915]
[1740724718550,190.0,127.17,127.02,12.0575]
[1740724718946,7.8766,127.1,127.03,7.8805]
[1740724719455,14.32,127.12,127.03,7.8805]
[1740724719751,0.05498335,127.08,127.05,0.0588377]
[1740724721453,0.05498335,127.08,127.05,7.9381377]
[1740724721654,0.05498335,127.08,127.05,0.0588377]
[1740724722051,0.05498335,127.08,127.05,7.9380377]
[1740724722454,0.05498335,127.08,127.05,0.0588377]
[1740724723554,7.93308335,127.08,127.05,0.0588377]
[1740724723855,0.05498335,127.08,127.05,0.0588377]
[1740724725353,7.8788,127.06,127.05,0.0588377]
[1740724726154,3.94,127.06,126.82,485.74492212]
[1740724726349,14.32,127.05,126.93,7.6581]
[1740724726555,14.32,127.05,126.96,7.8848]
[1740724726757,14.32,127.05,126.93,7.6581]
[1740724727157,14.32,127.05,126.97,7.8837]
[1740724727357,0.05386557,127.0,126.98,0.05307979]
[1740724727559,7.8811,127.03,126.98,0.05307979]
[1740724727758,7.93209889,127.0,126.98,0.05307979]
[1740724727963,14.32,127.05,126.98,0.05307979]
[1740724728261,0.05650233,127.03,126.99,7.8829]
[1740724728459,0.05650233,127.03,126.9,14.32]
[1740724728651,0.05650233,127.03,127.0,0.05808334]
[1740724728861,14.32,127.05,127.01,7.8818]
[1740724729063,0.05844737,127.03,127.0,0.05808334]
[1740724729252,14.32,127.09,127.03,7.8805]
[1740724729555,214.02,127.15,127.01,7.7181]
[1740724729763,14.32,127.12,127.02,4.0557]
[1740724729960,7.8764,127.1,127.04,7.8799]
[1740724730161,7.8764,127.1,127.02,4.0557]
[1740724730461,14.32,127.12,127.02,4.0557]
[1740724730662,7.8761,127.11,127.05,7.8789]
[1740724730859,0.04992459,127.08,127.06,0.05692733]
[1740724731263,214.02,127.15,127.08,7.8773]
[1740724731460,24.83881771,127.17,127.02,4.0557]
[1740724731756,7.8726,127.16,127.11,7.8753]
[1740724731961,10.51881771,127.17,127.02,4.0557]
[1740724732663,0.05425921,127.11,127.08,0.05475295]
[1740724732961,7.8739,127.14,127.02,4.0557]
[1740724733154,0.05990742,127.11,127.08,0.0560764]
[1740724733351,14.32,127.19,127.02,4.0557]
[1740724733552,0.0560173,127.08,127.07,7.8778]
[1740724733754,7.8745,127.13,127.07,7.8778]
[1740724734058,0.0548623,127.09,127.07,7.8778]
[1740724734460,7.8739,127.14,127.07,7.93088285]
[1740724734661,7.8739,127.14,127.02,4.0557]
[1740724734859,14.32,127.19,127.02,4.0557]
[1740724735060,7.8746,127.13,127.02,4.0557]
[1740724735361,14.32,127.19,127.02,4.0557]
[1740724735561,0.05480372,127.09,127.08,7.8771]
[1740724735760,1.447668,127.18,127.08,7.8771]
[1740724736057,1.447668,127.18,127.02,4.0557]
[1740724736257,7.875,127.13,127.02,4.0557]
[1740724736462,14.32,127.19,127.02,4.0557]
[1740724736670,1.44763562,127.18,127.02,4.0557]
[1740724736867,0.05315979,127.12,127.09,0.06013594]
[1740724737066,15.76746383,127.19,127.02,4.0557]
[1740724737262,14.32,127.19,127.02,4.0557]
[1740724737562,0.04976119,127.12,127.02,4.0557]
[1740724737762,1.44760248,127.18,127.09,0.05630595]
[1740724737961,0.05317986,127.08,127.02,4.0557]
[1740724738163,7.8749,127.13,127.02,4.0557]
[1740724738363,7.073e-05,127.06,127.04,0.05615524]
[1740724738665,7.8751,127.12,127.08,7.8775]
[1740724739161,7.8751,127.12,127.07,7.8779]
[1740724739554,0.05373756,127.11,127.08,0.05518459]
[1740724740161,0.05373756,127.11,127.02,4.0557]
[1740724740366,14.32,127.12,127.02,4.0557]
[1740724740564,14.32,127.12,127.02,11.9365]
[1740724740967,14.32,127.12,127.01,7.7181]
[1740724741264,1.79636501,127.11,127.01,7.7181]
[1740724741464,0.05919704,127.08,127.05,0.05056596]
[1740724741660,7.8794,127.06,127.05,0.05056596]
[1740724742366,7.8804,127.04,126.95,3.9852]
[1740724742561,0.05919704,127.08,126.96,8.069]
[1740724742761,1.44866274,127.1,126.98,7.8836]
[1740724742968,7.8815,127.02,126.96,8.069]
[1740724743564,0.05882701,127.0,126.98,0.05530141]
[1740724745269,0.05882701,127.0,126.9,12.0173]
[1740724745471,7.8848,126.97,126.91,7.8881]
[1740724745873,14.32,126.98,126.91,7.8881]
[1740724746163,14.32,126.98,126.9,12.0173]
[1740724746368,0.05195622,126.96,126.93,0.05294949]
[1740724747766,197.8808,127.03,126.93,0.05294949]
[1740724747962,7.8808,127.03,126.93,0.05294949]
[1740724748165,7.8789,127.06,126.9,12.0173]
[1740724748467,14.32,127.09,126.9,12.0173]
[1740724748773,7.8787,127.07,126.9,12.0173]
[1740724748967,0.05780017,127.01,126.98,0.05969556]
[1740724749173,7.8787,127.07,126.98,0.05969556]
[1740724749377,14.32,127.09,126.9,12.0173]
[1740724749562,246.5662351,127.14,126.91,1.4245442]
[1740724749563,42.76505281,127.13,126.91,1.4245442]
[1740724749963,42.76505281,127.13,127.05,7.8789]
[1740724749964,7.8764,127.1,127.05,7.8789]
[1740724750374,0.05925961,127.09,127.06,0.05961505]
[1740724752468,0.05925961,127.09,127.07,7.8775]
[1740724752674,0.05925961,127.09,127.06,0.05961505]
[1740724753669,14.32,127.16,127.06,0.05961505]
[1740724753969,14.32,127.16,126.98,4.1448]
[1740724754272,1.44817662,127.15,126.98,4.1448]
[1740724754473,1.44817662,127.15,126.99,4.0396]
[1740724754669,1.44817662,127.15,127.06,0.05770697]
[1740724754866,1.44817662,127.15,126.99,4.0396]
[1740724755068,0.05311458,127.12,127.1,7.8758]
[1740724755372,14.32,127.16,126.99,4.0396]
[1740724755572,0.05488928,127.12,127.1,0.05011439]
[1740724755772,14.32,127.16,126.99,4.0396]
[1740724755968,0.05168023,127.12,126.99,4.0396]
[1740724756165,1.5678928,127.15,126.99,4.0396]
[1740724756369,14.32,127.16,126.99,4.0396]
[1740724756572,14.32,127.17,126.99,4.0396]
[1740724756772,1.44783225,127.16,126.99,4.0396]
[1740724757268,0.05853799,127.09,127.06,0.05487171]
[1740724757471,14.4399,127.19,126.99,218.2596]
[1740724757668,1.44758503,127.18,126.99,218.2596]
[1740724757870,10.82141771,127.2,127.0,15.7645]
[1740724758071,10.51881771,127.2,126.99,218.2596]
[1740724758475,10.51881771,127.2,127.01,15.7628]
[1740724758671,0.04962177,127.11,127.08,0.05928273]
[1740724758873,10.51881771,127.2,127.01,210.7628]
[1740724759074,1.44746159,127.19,127.01,15.7628]
[1740724759875,10.51881771,127.2,127.01,15.7628]
[1740724760069,4.942e-05,127.11,127.09,0.04967667]
[1740724760273,14.32,127.21,127.04,14.32]
[1740724760577,1.44721965,127.2,127.05,4.0747]
[1740724761172,0.05545041,127.14,127.12,7.8749]
[1740724761470,228.62,127.22,127.06,4.0364]
[1740724761675,0.05256356,127.14,127.12,0.05872754]
[1740724761870,228.62,127.22,127.06,4.0364]
[1740724762271,7.8702,127.2,127.15,7.8727]
[1740724762474,228.62,127.22,127.06,4.0364]
[1740724762775,7.8711,127.19,127.15,7.8732]
[1740724763168,0.02642839,127.18,127.06,4.0364]
[1740724763373,7.8721,127.17,127.16,0.04986316]
[1740724763573,0.02642839,127.13,127.12,7.8747]
[1740724763774,7.8724,127.17,127.06,4.0364]
[1740724763975,228.62,127.22,127.13,7.874]
[1740724763976,0.02642839,127.14,127.13,7.874]
[1740724764179,14.32,127.27,127.06,218.7337]
[1740724764368,1.44681721,127.25,127.17,7.8716]
[1740724764573,1.44681721,127.26,127.06,214.7937]
[1740724764869,1.4471019,127.25,127.14,7.8737]
[1740724765179,1.4471019,127.24,127.06,199.0364]
[1740724765368,7.8692,127.22,127.18,0.0587412]
[1740724765573,14.602,127.27,127.16,7.8722]
[1740724765772,1.44680697,127.26,127.19,0.06041306]
[1740724765973,14.602,127.27,127.19,0.06041306]
[1740724766271,14.602,127.27,127.06,199.0364]
[1740724766272,1.44674287,127.26,127.22,0.06035972]
[1740724766672,7.8686,127.23,127.17,7.8718]
[1740724766872,14.602,127.27,127.06,199.0364]
[1740724767073,7.8695,127.21,127.19,0.05003514]
[1740724767277,14.32,127.24,127.07,3.9988]
[1740724767481,14.32,127.24,127.19,0.05878185]
[1740724767679,7.8698,127.21,127.15,7.8728]
[1740724768077,7.8698,127.21,127.17,0.05589338]
[1740724768277,7.8691,127.22,127.17,0.05589338]
[1740724768578,14.32,127.24,127.17,0.05589338]
[1740724768779,7.8699,127.21,127.17,0.05589338]
[1740724769075,37.86,127.24,127.17,0.05589338]
[1740724769277,1.44724801,127.23,127.17,0.05589338]
[1740724769488,1.4473617,127.22,127.07,198.9988]
[1740724769779,7.8723,127.17,127.09,7.8767]
[1740724769980,23.54,127.22,127.07,3.9988]
[1740724770177,1.44742993,127.21,127.07,3.9988]
[1740724770581,0.05589338,127.15,127.13,0.05308128]
[1740724770775,190.0,127.23,127.13,0.05308128]
[1740724770972,14.32,127.24,127.07,3.9988]
[1740724771186,7.8683,127.23,127.15,7.8727]
[1740724771987,7.8683,127.23,127.18,0.05628049]
[1740724772283,7.8683,127.23,127.16,7.8724]
[1740724772478,7.8683,127.23,127.19,0.05142163]
[1740724773280,7.8678,127.24,127.19,0.05142163]
[1740724773679,14.3,127.25,127.19,0.05142163]
[1740724774082,37.84,127.25,127.07,3.9988]
[1740724774388,3.01914933,127.24,127.07,3.9988]
[1740724774585,1.44731658,127.23,127.11,7.8752]
[1740724774777,213.54,127.22,127.07,3.9988]
[1740724774980,1.44731658,127.21,127.07,3.9988]
[1740724775383,0.05142163,127.15,127.13,0.05855512]
[1740724775685,7.8717,127.18,127.07,3.9988]
[1740724775885,0.05142163,127.15,127.13,0.0502635]
[1740724776986,0.05142163,127.15,127.06,4.0364]
[1740724777481,0.236,127.17,127.06,4.0364]
[1740724777881,7.873,127.16,127.09,7.8765]
[1740724778082,0.05480853,127.13,127.1,0.05220254]
[1740724779082,0.05480853,127.13,127.11,7.8757]
[1740724779588,0.05480853,127.13,127.1,0.05220254]
[1740724779787,0.05480853,127.13,127.12,7.875]
[1740724779988,0.05480853,127.13,127.1,0.05220254]
[1740724780691,7.92960853,127.13,127.1,0.05220254]
[1740724781793,7.8751,127.12,127.1,0.05220254]
[1740724782286,7.92950853,127.13,127.1,0.05220254]
[1740724782492,0.05480853,127.13,127.1,0.05220254]
[1740724782882,0.05480853,127.13,127.12,7.875]
[1740724783690,14.3,127.18,127.1,0.05220254]
[1740724784193,14.3,127.18,127.07,3.9415]
[1740724784394,0.3344,127.2,127.07,3.9415]
[1740724784592,14.6344,127.2,127.07,3.9415]
[1740724784791,0.0468766,127.15,127.12,0.05238534]
[1740724785091,0.0468766,127.15,127.07,3.9415]
[1740724785291,14.6344,127.2,127.12,0.05562694]
[1740724785485,14.6344,127.2,127.14,7.8733]
[1740724785688,0.0468766,127.17,127.15,0.05410837]
[1740724785888,0.0468766,127.17,127.07,3.9415]
[1740724786089,7.8709,127.19,127.15,0.05464236]
[1740724786286,7.66e-05,127.13,127.07,3.9415]
[1740724786489,14.3,127.2,127.07,3.9415]
[1740724786490,22.1702,127.2,127.07,3.9415]
[1740724786695,14.3,127.2,127.07,3.9415]
[1740724787494,14.3,127.2,127.12,0.05645955]
[1740724787688,7.8736,127.15,127.11,7.8755]
[1740724787889,23.65,127.19,127.07,3.9415]
[1740724788291,1.4475147,127.18,127.08,7.8773]
[1740724788493,1.4475147,127.18,127.07,3.9415]
[1740724789195,0.05136145,127.14,127.11,0.05031561]
[1740724789592,0.05136145,127.14,127.11,7.92571561]
[1740724789990,0.05136145,127.14,127.11,0.05031561]
[1740724791796,57.06505281,127.2,127.11,0.05031561]
[1740724791996,57.06505281,127.2,127.07,3.9415]
[1740724792199,7.8721,127.17,127.13,7.874]
[1740724792398,57.06505281,127.2,127.07,3.9415]
[1740724792699,24.81881771,127.2,127.07,3.9415]
[1740724793001,7.8717,127.18,127.12,0.0523064]
[1740724793298,7.872,127.17,127.14,0.05591645]
[1740724793497,7.872,127.17,127.13,7.874]
[1740724793795,7.872,127.17,127.14,0.05182881]
[1740724793999,48.46881771,127.2,127.14,0.05182881]
[1740724794195,1.44749113,127.19,127.14,0.05182881]
[1740724794397,7.8742,127.14,127.08,7.8771]
[1740724794594,23.70182881,127.18,127.08,7.8771]
[1740724794907,0.4335,127.17,127.08,7.8771]
[1740724795101,1.88113387,127.17,127.07,3.9415]
[1740724795298,7.8742,127.14,127.09,7.8768]
[1740724795499,0.05182881,127.13,127.11,0.04974677]
[1740724795797,213.65,127.19,127.07,3.9415]
[1740724796001,0.05182881,127.13,127.11,0.05450701]
[1740724796203,1.44764238,127.18,127.07,3.9415]
[1740724796404,0.05182881,127.11,127.09,0.05652103]
[1740724796603,1.44764238,127.18,127.07,3.9415]
[1740724796813,0.05182881,127.11,127.09,0.05954723]
[1740724797013,1.44764238,127.18,127.07,3.9415]
[1740724797203,14.3,127.2,127.09,0.05108265]
[1740724797408,0.05182881,127.14,127.07,3.9415]
[1740724797615,0.05182881,127.14,127.13,0.06025771]
[1740724797809,0.05182881,127.14,127.07,3.9415]
[1740724798010,0.05182881,127.14,127.12,7.92942012]
[1740724798207,0.05182881,127.14,127.12,7.8746]
[1740724798412,0.05182881,127.14,127.12,0.05474966]
[1740724799013,0.05182881,127.14,127.13,7.8744]
[1740724799410,14.3,127.2,127.12,0.05474966]
[1740724799615,7.8712,127.19,127.14,7.8736]
[1740724800717,14.3,127.2,127.15,0.05410557]
[1740724800917,14.3,127.2,127.13,7.8742]
[1740724801221,14.3,127.2,127.16,0.05340909]
[1740724801515,178.69974396,127.22,127.07,3.9415]
[1740724801516,36.16766914,127.22,127.07,3.9415]
[1740724801718,7.8699,127.21,127.16,7.8721]
[1740724802310,81.17683224,127.23,127.17,0.05633259]
[1740724802510,66.87683224,127.23,127.07,3.9415]
[1740724802721,104.82683224,127.23,127.19,0.05529695]
[1740724802917,7.8721,127.17,127.12,7.8747]
[1740724803223,108.76683224,127.23,127.07,3.9415]
[1740724803521,7.8737,127.15,127.07,3.9415]
[1740724803721,23.65,127.2,127.07,3.9415]
[1740724803913,23.65,127.18,127.07,11.8194]
[1740724804119,1.57652064,127.17,127.07,11.8194]
[1740724804421,31.5251,127.12,127.11,0.0554622]
[1740724804723,23.65,127.12,127.03,84.19477544]
[1740724804915,7.878,127.08,127.03,84.19477544]
[1740724805116,0.4798,127.11,127.03,84.19477544]
[1740724805415,215.09851008,127.1,127.03,84.19477544]
[1740724805614,7.88,127.04,127.03,84.19477544]
[1740724805820,7.88,127.04,127.03,84.07007544]
[1740724806221,0.05369293,127.05,127.03,84.07007544]
[1740724806815,7.88,127.04,127.03,84.07007544]
[1740724807020,0.05369293,127.05,127.03,84.07007544]
[1740724807522,23.65,127.04,127.02,0.04972645]
[1740724807723,0.05369293,127.05,127.02,0.04972645]
[1740724809026,3.99369293,127.05,126.96,3.7622]
[1740724809217,0.05369293,127.05,126.96,3.7622]
[1740724809419,190.0,127.08,126.96,3.7622]
[1740724809722,190.0,127.07,126.96,3.7622]
[1740724809917,14.429,127.09,126.96,3.7622]
[1740724810421,0.05359656,127.03,127.0,0.05081995]
[1740724810622,14.429,127.09,126.96,3.7622]
[1740724810821,0.05298506,127.03,127.0,0.05969831]
[1740724811218,22.3063,127.09,127.01,7.8818]
[1740724811424,0.05873334,127.03,127.0,0.05553549]
[1740724811618,0.05873334,127.03,126.96,3.7622]
[1740724811619,22.3063,127.09,126.96,3.7622]
[1740724811818,0.06048771,127.03,127.01,7.8813]
[1740724812019,0.06048771,127.03,127.0,0.05035227]
[1740724812219,14.429,127.09,126.96,3.7622]
[1740724812420,0.05048006,127.03,127.0,0.05632028]
[1740724812620,14.3,127.08,126.96,3.7622]
[1740724812819,14.3,127.08,126.92,4.0102]
[1740724812820,215.22393562,127.07,127.0,7.821e-05]
[1740724813025,23.65,127.05,126.88,4.1403]
[1740724813225,3.0237832,127.04,126.88,4.1403]
[1740724813421,3.02390713,127.03,126.88,4.1403]
[1740724813626,7.8859,126.95,126.88,4.1403]
[1740724813927,14.3,126.94,126.88,4.1403]
[1740724814128,0.05347615,126.93,126.9,0.05927743]
[1740724818427,7.94027615,126.93,126.9,0.05927743]
[1740724818620,0.05347615,126.93,126.9,0.05927743]
[1740724818826,0.05347615,126.93,126.77,11.65]
[1740724819029,0.49577615,126.93,126.77,11.65]
[1740724819327,14.32,126.93,126.85,7.8914]
[1740724819521,7.8878,126.92,126.86,7.8825]
[1740724819920,0.05061661,126.9,126.88,0.05874529]
[1740724820327,14.32,126.93,126.88,0.05874529]
[1740724821121,7.8877,126.92,126.88,0.05874529]
[1740724821323,14.32,126.93,126.88,0.05874529]
[1740724821531,0.05886342,126.91,126.88,0.05874529]
[1740724822229,14.32,126.93,126.88,0.05874529]
[1740724822829,24.0923,127.01,126.88,0.05874529]
[1740724823031,14.32,126.97,126.92,7.887]
[1740724823332,14.32,127.01,126.87,4.0979]
[1740724823527,0.0514647,126.96,126.93,0.05567173]
[1740724823727,1.57455518,127.02,126.93,0.05567173]
[1740724824032,1.57455518,127.02,126.88,209.32]
[1740724824221,37.97,127.07,126.88,209.32]
[1740724825026,0.05257891,126.99,126.96,0.05715437]
[1740724825233,7.8832,126.99,126.88,195.0]